bitfinex/quotes_BTCUSD_20240927
["timestamp","ask_amount","ask_price","bid_price","bid_amount"]
[1727431422973,0.69225803,65849.0,65848.0,0.00188131]
[1727431423445,0.67825803,65849.0,65848.0,0.00188131]
[1727431423876,0.69225803,65849.0,65848.0,0.00188131]
[1727431425718,0.67638482,65849.0,65848.0,0.00188131]
[1727431425944,0.69228168,65849.0,65848.0,0.00188131]
[1727431428391,0.78228168,65849.0,65848.0,0.00188131]
[1727431429449,0.7822823,65849.0,65848.0,0.00188131]
[1727431430940,0.65543542,65849.0,65848.0,0.00188131]
[1727431431153,0.7822823,65849.0,65848.0,0.00188131]
[1727431435440,0.65543542,65849.0,65848.0,0.00188131]
[1727431435678,0.7822823,65849.0,65848.0,0.00188131]
[1727431438512,0.8955027,65849.0,65848.0,0.00188131]
[1727431440430,0.78244771,65849.0,65848.0,0.00188131]
[1727431440688,0.89585584,65849.0,65848.0,0.00188131]
[1727431440927,0.76900896,65849.0,65848.0,0.00188131]
[1727431441148,0.89585584,65849.0,65848.0,0.00188131]
[1727431441625,0.78244771,65849.0,65848.0,0.00188131]
[1727431441868,0.89585246,65849.0,65848.0,0.00188131]
[1727431442420,0.89585246,65849.0,65848.0,3.1e-07]
[1727431442668,0.78244771,65849.0,65848.0,3.1e-07]
[1727431442899,0.153876,65843.0,65837.0,0.001656]
[1727431443094,0.47507371,65843.0,65837.0,0.001656]
[1727431443816,0.47527712,65843.0,65837.0,0.001656]
[1727431444267,0.48927712,65843.0,65837.0,0.001656]
[1727431444803,0.78325768,65843.0,65837.0,0.001656]
[1727431445037,0.88215768,65843.0,65837.0,0.001656]
[1727431445281,0.64948432,65843.0,65837.0,0.001656]
[1727431445525,0.88964862,65843.0,65837.0,0.001656]
[1727431446007,0.7623312,65843.0,65837.0,0.001656]
[1727431446256,0.7763312,65843.0,65837.0,0.001656]
[1727431446449,0.88963217,65843.0,65837.0,0.001656]
[1727431446677,0.7763312,65843.0,65837.0,0.001656]
[1727431447107,0.7623312,65843.0,65837.0,0.001656]
[1727431447325,0.7763312,65843.0,65837.0,0.001656]
[1727431447559,0.88963217,65843.0,65837.0,0.001656]
[1727431448255,0.174913,65827.0,65826.0,0.001656]
[1727431448489,0.174913,65827.0,65819.0,0.22848188]
[1727431448490,0.17144258,65827.0,65821.0,0.002]
[1727431448801,0.16807164,65826.0,65822.0,0.27876988]
[1727431449025,0.16807164,65826.0,65822.0,0.1751]
[1727431449026,0.151921,65824.0,65822.0,0.1751]
[1727431449252,0.303823,65828.0,65824.0,0.002]
[1727431449475,0.455734,65828.0,65827.0,0.002]
[1727431449699,0.151913,65827.0,65826.0,0.002]
[1727431449933,0.16804298,65827.0,65826.0,0.002]
[1727431450381,0.16804298,65827.0,65825.0,0.1771]
[1727431450382,0.151915,65826.0,65825.0,0.1771]
[1727431450598,0.16804498,65826.0,65825.0,0.1771]
[1727431451325,0.151915,65826.0,65825.0,0.1771]
[1727431451550,0.16804699,65826.0,65825.0,0.1771]
[1727431451993,0.16804699,65826.0,65825.0,0.002]
[1727431452228,0.16804699,65826.0,65819.0,0.000828]
[1727431452229,0.151929,65820.0,65819.0,0.000828]
[1727431452452,0.17141993,65820.0,65819.0,0.000828]
[1727431452686,0.16806099,65820.0,65819.0,0.000828]
[1727431454128,0.16806099,65820.0,65819.0,0.002828]
[1727431454129,0.17306099,65820.0,65819.0,0.002828]
[1727431454356,0.17706099,65820.0,65819.0,0.002828]
[1727431454796,0.16806099,65820.0,65819.0,0.000828]
[1727431455253,0.18506099,65820.0,65819.0,0.000828]
[1727431455917,0.34034893,65820.0,65819.0,0.000828]
[1727431457030,0.36334893,65820.0,65819.0,0.000828]
[1727431458211,0.36335467,65820.0,65819.0,0.000828]
[1727431458453,0.55685865,65820.0,65819.0,0.000828]
[1727431458679,0.54885865,65820.0,65819.0,0.000828]
[1727431459154,0.56285865,65820.0,65819.0,0.000828]
[1727431460090,0.04590629,65800.0,65799.0,0.19752422]
[1727431460315,0.04590629,65800.0,65799.0,0.151977]
[1727431462341,0.03249817,65800.0,65799.0,0.151977]
[1727431462568,0.03249817,65800.0,65798.0,0.151978]
[1727431462764,0.03249817,65800.0,65797.0,0.303964]
[1727431463000,0.03249817,65800.0,65798.0,0.15198]
[1727431463225,0.03249817,65800.0,65795.0,0.350474]
[1727431463442,0.03249817,65800.0,65799.0,0.151977]
[1727431465946,0.03249817,65800.0,65799.0,0.152805]
[1727431468343,0.03192646,65800.0,65799.0,0.152805]
[1727431469481,0.03192646,65800.0,65799.0,0.000828]
[1727431469720,0.03164137,65800.0,65799.0,0.000828]
[1727431470192,0.03164137,65800.0,65799.0,0.152805]
[1727431470433,0.04778232,65800.0,65799.0,0.152805]
[1727431471747,0.04778232,65800.0,65799.0,0.000828]
[1727431472241,0.19947227,65800.0,65799.0,0.000828]
[1727431472477,0.04749727,65800.0,65799.0,0.000828]
[1727431472935,0.04749256,65800.0,65799.0,0.000828]
[1727431473598,0.19946756,65800.0,65799.0,0.000828]
[1727431475159,0.4342555,65800.0,65799.0,0.000828]
[1727431476537,0.4382555,65800.0,65799.0,0.000828]
[1727431477014,0.43826129,65800.0,65799.0,0.000828]
[1727431477240,0.41727978,65800.0,65799.0,0.000828]
[1727431477702,0.42827978,65800.0,65799.0,0.000828]
[1727431478132,0.43327978,65800.0,65799.0,0.000828]
[1727431478373,0.42827978,65800.0,65799.0,0.000828]
[1727431478607,0.44027978,65800.0,65799.0,0.000828]
[1727431479272,0.4391705,65800.0,65799.0,0.000828]
[1727431480521,0.5542705,65800.0,65799.0,0.000828]
[1727431480689,0.55425123,65800.0,65799.0,0.000828]
[1727431480899,0.5590055,65800.0,65799.0,0.000828]
[1727431481337,0.6590055,65800.0,65799.0,0.000828]
[1727431481559,0.6470055,65800.0,65799.0,0.000828]
[1727431481810,0.6610055,65800.0,65799.0,0.000828]
[1727431482303,0.6360055,65800.0,65799.0,0.000828]
[1727431482526,0.6978732,65800.0,65799.0,0.000828]
[1727431482964,0.6640055,65800.0,65799.0,0.000828]
[1727431483639,0.6500055,65800.0,65799.0,0.000828]
[1727431483867,0.6640055,65800.0,65799.0,0.000828]
[1727431484368,0.62401249,65800.0,65799.0,0.000828]
[1727431484602,0.65617871,65800.0,65799.0,0.000828]
[1727431485087,0.65417871,65800.0,65799.0,0.000828]
[1727431485798,0.63117871,65800.0,65799.0,0.000828]
[1727431487672,0.65417871,65800.0,65799.0,0.000828]
[1727431489251,0.64017871,65800.0,65799.0,0.000828]
[1727431490223,0.65417871,65800.0,65799.0,0.000828]
[1727431490652,0.65389281,65800.0,65799.0,0.000828]
[1727431491117,0.63989281,65800.0,65799.0,0.000828]
[1727431491361,0.65554881,65800.0,65799.0,0.000828]
[1727431492318,0.63679454,65800.0,65799.0,0.000828]
[1727431492544,0.35619454,65800.0,65799.0,0.000828]
[1727431493420,0.34219454,65800.0,65799.0,0.000828]
[1727431494546,0.35619454,65800.0,65799.0,0.000828]
[1727431495004,0.36819454,65800.0,65799.0,0.000828]
[1727431495233,0.2129066,65800.0,65799.0,0.000828]
[1727431495463,0.1989066,65800.0,65799.0,0.000828]
[1727431495689,0.2099066,65800.0,65799.0,0.000828]
[1727431497278,0.0579316,65800.0,65799.0,0.000828]
[1727431497799,0.0579316,65800.0,65799.0,0.152805]
[1727431498809,0.0319316,65800.0,65799.0,0.152805]
[1727431499059,0.00976538,65800.0,65799.0,0.152805]
[1727431499314,0.02989,65800.0,65799.0,0.152805]
[1727431499763,0.02589,65800.0,65799.0,0.152805]
[1727431500225,0.02589,65800.0,65799.0,0.153805]
[1727431500445,0.02089,65800.0,65799.0,0.153805]
[1727431500668,0.02089,65800.0,65799.0,0.154805]
[1727431501080,0.02089,65800.0,65799.0,0.153805]
[1727431501510,0.02089,65800.0,65799.0,0.154805]
[1727431502397,0.00476538,65800.0,65799.0,0.154805]
[1727431502840,0.02092541,65800.0,65799.0,0.154805]
[1727431503521,0.02092541,65800.0,65799.0,0.15784416]
[1727431503758,0.02092541,65800.0,65799.0,0.154805]
[1727431505466,0.02092541,65800.0,65799.0,0.002828]
[1727431505706,0.17290041,65800.0,65799.0,0.002828]
[1727431506189,0.32819745,65800.0,65799.0,0.002828]
[1727431506424,0.40829745,65800.0,65799.0,0.002828]
[1727431506653,0.40829745,65800.0,65799.0,0.001828]
[1727431506879,0.39712832,65800.0,65799.0,0.001828]
[1727431507097,0.39712832,65800.0,65799.0,0.000828]
[1727431507349,0.41329738,65800.0,65799.0,0.000828]
[1727431507564,0.41929738,65800.0,65799.0,0.000828]
[1727431508001,0.46152351,65800.0,65799.0,0.000828]
[1727431509016,0.41929738,65800.0,65799.0,0.000828]
[1727431513875,0.46166495,65800.0,65799.0,0.000828]
[1727431514663,0.4616653,65800.0,65799.0,0.000828]
[1727431514881,0.5521653,65800.0,65799.0,0.000828]
[1727431516210,0.53279738,65800.0,65799.0,0.000828]
[1727431516415,0.57013484,65800.0,65799.0,0.000828]
[1727431516645,0.58313484,65800.0,65799.0,0.000828]
[1727431517533,0.57713484,65800.0,65799.0,0.000828]
[1727431517745,0.59113484,65800.0,65799.0,0.000828]
[1727431519716,0.54879738,65800.0,65799.0,0.000828]
[1727431519924,0.57498375,65800.0,65799.0,0.000828]
[1727431522544,0.152001,65789.0,65788.0,0.11084036]
[1727431522729,0.42474437,65789.0,65788.0,0.11084036]
[1727431522906,0.52344437,65789.0,65788.0,0.11084036]
[1727431523312,0.52354588,65789.0,65788.0,0.11084036]
[1727431523889,0.52654588,65789.0,65788.0,0.11084036]
[1727431524187,0.39754488,65789.0,65787.0,0.000829]
[1727431524409,0.64954788,65788.0,65787.0,0.000829]
[1727431525356,0.53530736,65788.0,65787.0,0.000829]
[1727431525584,0.51230736,65788.0,65787.0,0.000829]
[1727431525801,0.19774488,65788.0,65787.0,0.000829]
[1727431526230,0.04245694,65788.0,65787.0,0.000829]
[1727431526868,0.19445994,65788.0,65787.0,0.000829]
[1727431527071,0.20845994,65788.0,65787.0,0.000829]
[1727431527280,0.05645694,65788.0,65787.0,0.000829]
[1727431527945,0.04245694,65788.0,65787.0,0.000829]
[1727431528154,0.05245694,65788.0,65787.0,0.000829]
[1727431528574,0.20445994,65788.0,65787.0,0.000829]
[1727431528787,0.21845994,65788.0,65787.0,0.000829]
[1727431529681,0.20445994,65788.0,65787.0,0.000829]
[1727431530110,0.21345994,65788.0,65787.0,0.000829]
[1727431531187,0.54564788,65788.0,65787.0,0.000829]
[1727431534844,0.44604788,65788.0,65787.0,0.000829]
[1727431537296,0.44560395,65788.0,65787.0,0.000829]
[1727431537936,0.29360095,65788.0,65787.0,0.000829]
[1727431538188,0.44560395,65788.0,65787.0,0.000829]
[1727431538440,0.06101301,65788.0,65787.0,0.152834]
[1727431538666,0.06101301,65788.0,65787.0,0.246534]
[1727431538888,0.06101301,65788.0,65787.0,0.346534]
[1727431538889,0.03488566,65788.0,65787.0,0.346534]
[1727431539112,0.03488566,65788.0,65787.0,0.407234]
[1727431539554,0.01,65788.0,65787.0,0.45274378]
[1727431539768,0.011,65788.0,65787.0,0.45274378]
[1727431540428,0.01,65788.0,65787.0,0.45274378]
[1727431540871,0.011,65788.0,65787.0,0.45474378]
[1727431541100,0.23273064,65800.0,65799.0,0.151977]
[1727431541318,0.23244542,65800.0,65799.0,0.151977]
[1727431541741,0.00448016,65800.0,65799.0,0.151977]
[1727431542435,0.00448016,65800.0,65796.0,0.303969]
[1727431542654,0.00948016,65800.0,65795.0,0.151985]
[1727431542875,0.151981,65798.0,65795.0,0.151985]
[1727431543098,0.15198,65798.0,65795.0,0.151986]
[1727431543386,0.00948016,65800.0,65792.0,0.151993]
[1727431543664,0.168,65799.0,65791.0,0.30399]
[1727431543868,0.076,65798.0,65787.0,0.000829]
[1727431544116,0.01048016,65800.0,65787.0,0.000829]
[1727431544117,0.01048016,65800.0,65789.0,1.21590461]
[1727431544336,0.91190261,65799.0,65793.0,0.19350398]
[1727431544558,0.004,65798.0,65794.0,0.151988]
[1727431545000,0.91190261,65799.0,65794.0,0.151988]
[1727431545453,0.91190261,65799.0,65795.0,0.151986]
[1727431545660,1.06388061,65799.0,65794.0,0.151988]
[1727431546101,0.007,65799.0,65789.0,0.19350398]
[1727431546328,0.014,65798.0,65795.0,0.151986]
[1727431546537,0.007,65799.0,65793.0,0.303982]
[1727431546747,0.166978,65799.0,65795.0,0.151986]
[1727431547235,0.015,65799.0,65795.0,0.151986]
[1727431547415,0.015,65799.0,65793.0,0.303982]
[1727431547416,0.015,65799.0,65796.0,0.151984]
[1727431547628,0.151981,65798.0,65789.0,0.19350398]
[1727431547849,0.151981,65798.0,65794.0,0.151987]
[1727431548291,0.00448016,65800.0,65790.0,0.303996]
[1727431548292,0.91190261,65797.0,65790.0,0.303996]
[1727431548546,0.91190261,65796.0,65790.0,0.303997]
[1727431548757,0.91190261,65796.0,65792.0,0.151993]
[1727431548758,0.151986,65796.0,65792.0,0.151993]
[1727431548979,0.007,65799.0,65789.0,0.19350398]
[1727431549193,0.00448016,65800.0,65787.0,0.304837]
[1727431549194,0.15199,65794.0,65787.0,0.304837]
[1727431549430,0.01617888,65793.0,65787.0,0.304837]
[1727431549664,0.01617888,65792.0,65790.0,0.151997]
[1727431549939,0.01617888,65792.0,65787.0,0.304837]
[1727431549940,0.303998,65790.0,65787.0,0.000829]
[1727431550164,1.01138149,65791.0,65787.0,0.000829]
[1727431550165,0.01617888,65789.0,65787.0,0.152834]
[1727431550381,0.01617888,65789.0,65787.0,0.000829]
[1727431550382,0.16818188,65788.0,65787.0,0.000829]
[1727431552523,0.19413861,65788.0,65787.0,0.000829]
[1727431552718,0.20213861,65788.0,65787.0,0.000829]
[1727431552923,0.21118127,65788.0,65787.0,0.000829]
[1727431553552,0.43918811,65788.0,65787.0,0.000829]
[1727431553840,0.59447605,65788.0,65787.0,0.000829]
[1727431554025,0.36646921,65788.0,65787.0,0.000829]
[1727431555246,0.44246921,65788.0,65787.0,0.000829]
[1727431555470,0.53246921,65788.0,65787.0,0.000829]
[1727431557169,0.53716391,65788.0,65787.0,0.000829]
[1727431558035,0.56016391,65788.0,65787.0,0.000829]
[1727431558759,0.54316391,65788.0,65787.0,0.000829]
[1727431558984,0.55316391,65788.0,65787.0,0.000829]
[1727431559193,0.66416391,65788.0,65787.0,0.000829]
[1727431559400,0.65316391,65788.0,65787.0,0.000829]
[1727431559834,0.66716391,65788.0,65787.0,0.000829]
[1727431560108,0.65716391,65788.0,65787.0,0.000829]
[1727431561444,0.67116391,65788.0,65787.0,0.000829]
[1727431563130,0.66646921,65788.0,65787.0,0.000829]
[1727431563351,0.56646921,65788.0,65787.0,0.000829]
[1727431563995,0.89447605,65788.0,65787.0,0.000829]
[1727431564450,0.66646921,65788.0,65787.0,0.000829]
[1727431565344,0.65246921,65788.0,65787.0,0.000829]
[1727431565963,0.66646921,65788.0,65787.0,0.000829]
[1727431569466,0.39146621,65788.0,65787.0,0.000829]
[1727431569965,0.5272468,65788.0,65787.0,0.000829]
[1727431570233,0.33528794,65788.0,65787.0,0.000829]
[1727431570737,0.34828794,65788.0,65787.0,0.000829]
[1727431570987,0.33428794,65788.0,65787.0,0.000829]
[1727431571230,0.38866705,65788.0,65787.0,0.000829]
[1727431571466,0.37236739,65788.0,65787.0,0.000829]
[1727431572239,0.38875647,65788.0,65787.0,0.000829]
[1727431572462,0.79176631,65788.0,65787.0,0.000829]
[1727431572701,0.56375947,65788.0,65787.0,0.000829]
[1727431575556,0.41175647,65788.0,65787.0,0.000829]
[1727431576015,0.56375947,65788.0,65787.0,0.000829]
[1727431576251,0.41175647,65788.0,65787.0,0.000829]
[1727431576974,0.56375947,65788.0,65787.0,0.000829]
[1727431577196,0.56407826,65788.0,65787.0,0.000829]
[1727431577405,0.41207526,65788.0,65787.0,0.000829]
[1727431577845,0.38907526,65788.0,65787.0,0.152834]
[1727431578068,0.22307526,65788.0,65787.0,0.152834]
[1727431578986,0.22307526,65788.0,65787.0,0.000829]
[1727431579717,0.6329821,65788.0,65787.0,0.000829]
[1727431579928,0.67997826,65788.0,65787.0,0.000829]
[1727431581133,0.82812558,65788.0,65787.0,0.000829]
[1727431581364,0.67997826,65788.0,65787.0,0.000829]
[1727431582070,0.66797826,65788.0,65787.0,0.000829]
[1727431582525,0.65497826,65788.0,65787.0,0.000829]
[1727431582769,0.66897826,65788.0,65787.0,0.000829]
[1727431583463,0.65497826,65788.0,65787.0,0.000829]
[1727431583894,0.66897826,65788.0,65787.0,0.000829]
[1727431584676,0.65497826,65788.0,65787.0,0.000829]
[1727431584902,0.66897826,65788.0,65787.0,0.000829]
[1727431586071,0.68297826,65788.0,65787.0,0.000829]
[1727431586986,0.68309542,65788.0,65787.0,0.000829]
[1727431587642,0.68303299,65788.0,65787.0,0.000829]
[1727431588752,0.65503299,65788.0,65787.0,0.000829]
[1727431589432,0.84853697,65788.0,65787.0,0.000829]
[1727431590055,0.87153697,65788.0,65787.0,0.000829]
[1727431594434,0.82869492,65788.0,65787.0,0.000829]
[1727431594641,0.87151033,65788.0,65787.0,0.000829]
[1727431596768,0.87316833,65788.0,65787.0,0.000829]
[1727431598838,0.87926233,65788.0,65787.0,0.000829]
[1727431605728,0.85311269,65788.0,65787.0,0.000829]
[1727431605973,0.87977792,65788.0,65787.0,0.000829]
[1727431607248,0.68627394,65788.0,65787.0,0.000829]
[1727431607469,0.87977792,65788.0,65787.0,0.000829]
[1727431608082,0.86577792,65788.0,65787.0,0.000829]
[1727431608282,0.87977792,65788.0,65787.0,0.000829]
[1727431609200,0.99285409,65788.0,65787.0,0.000829]
[1727431609434,0.87977792,65788.0,65787.0,0.000829]
[1727431609651,0.46367394,65788.0,65787.0,0.000829]
[1727431609872,0.37527994,65788.0,65787.0,0.000829]
[1727431610085,0.36127994,65788.0,65787.0,0.000829]
[1727431610526,0.37527994,65788.0,65787.0,0.000829]
[1727431611024,0.36127994,65788.0,65787.0,0.000829]
[1727431611261,0.44727994,65788.0,65787.0,0.000829]
[1727431611483,0.46127994,65788.0,65787.0,0.000829]
[1727431611722,0.49827994,65788.0,65787.0,0.000829]
[1727431611960,0.47027994,65788.0,65787.0,0.000829]
[1727431612420,0.66378392,65788.0,65787.0,0.000829]
[1727431612838,0.67778392,65788.0,65787.0,0.000829]
[1727431613060,0.85188392,65788.0,65787.0,0.000829]
[1727431613299,0.86588392,65788.0,65787.0,0.000829]
[1727431613512,0.85188392,65788.0,65787.0,0.000829]
[1727431613724,0.86588392,65788.0,65787.0,0.000829]
[1727431614144,0.85188392,65788.0,65787.0,0.000829]
[1727431614377,0.86588392,65788.0,65787.0,0.000829]
[1727431614843,0.85188392,65788.0,65787.0,0.000829]
[1727431615094,0.83788392,65788.0,65787.0,0.000829]
[1727431615327,0.85188392,65788.0,65787.0,0.000829]
[1727431615563,0.94236393,65788.0,65787.0,0.000829]
[1727431615780,1.10737564,65788.0,65787.0,0.000829]
[1727431615989,0.96498758,65788.0,65787.0,0.000829]
[1727431616445,0.7627844,65788.0,65787.0,0.000829]
[1727431616668,0.67237994,65788.0,65787.0,0.000829]
[1727431616881,0.65837994,65788.0,65787.0,0.000829]
[1727431617100,0.67237994,65788.0,65787.0,0.00082863]
[1727431617336,0.64437994,65788.0,65787.0,0.00082863]
[1727431617558,0.65837994,65788.0,65787.0,0.00082863]
[1727431617776,0.67237994,65788.0,65787.0,0.00082863]
[1727431618005,0.65837994,65788.0,65787.0,0.00082863]
[1727431618223,0.67237994,65788.0,65787.0,0.00082863]
[1727431618484,0.7627844,65788.0,65787.0,0.00082863]
[1727431621037,0.4656844,65788.0,65787.0,0.00082863]
[1727431621282,0.37527994,65788.0,65787.0,0.00082863]
[1727431621768,0.36127994,65788.0,65787.0,0.00082863]
[1727431622007,0.37527994,65788.0,65787.0,0.00082863]
[1727431622905,0.36127994,65788.0,65787.0,0.00082863]
[1727431623109,0.37644259,65788.0,65787.0,0.00082863]
[1727431623355,0.07415165,65788.0,65787.0,0.00082863]
[1727431623634,0.21215465,65788.0,65787.0,0.00082863]
[1727431623870,0.22315465,65788.0,65787.0,0.00082863]
[1727431624102,0.21215465,65788.0,65787.0,0.00082863]
[1727431624343,0.04615165,65788.0,65787.0,0.00082863]
[1727431624586,0.21915465,65788.0,65787.0,0.00082863]
[1727431624841,0.05615165,65788.0,65787.0,0.00082863]
[1727431625140,0.04615165,65788.0,65787.0,0.25133363]
[1727431625395,0.05515165,65788.0,65787.0,0.31203363]
[1727431625644,0.05515165,65788.0,65787.0,0.35763448]
[1727431626203,0.05615165,65788.0,65787.0,0.38043491]
[1727431626462,0.01877094,65788.0,65787.0,0.3575924]
[1727431626662,0.01877094,65788.0,65787.0,0.31203363]
[1727431626875,0.01877094,65788.0,65787.0,0.31507325]
[1727431627097,0.22800684,65797.0,65788.0,0.0076]
[1727431627307,0.22800684,65797.0,65796.0,0.151984]
[1727431627518,0.0271313,65797.0,65795.0,0.49747698]
[1727431627739,0.00448016,65800.0,65795.0,0.49747698]
[1727431627740,0.0271313,65796.0,65795.0,0.49747698]
[1727431628132,0.00448016,65800.0,65798.0,0.15198]
[1727431628133,0.0269881,65799.0,65798.0,0.15198]
[1727431628428,0.02698817,65799.0,65798.0,0.15198]
[1727431629073,0.02698817,65799.0,65795.0,0.19350398]
[1727431629289,0.002,65796.0,65795.0,0.151987]
[1727431629505,0.02898817,65796.0,65795.0,0.151987]
[1727431630002,0.02895841,65796.0,65795.0,0.151987]
[1727431630216,0.02825841,65796.0,65795.0,0.151987]
[1727431630434,0.02815841,65796.0,65795.0,0.151987]
[1727431630653,0.02695841,65796.0,65794.0,0.303976]
[1727431630890,0.0028,65796.0,65795.0,0.151987]
[1727431631120,0.0028,65796.0,65790.0,0.303995]
[1727431631121,0.029241,65796.0,65790.0,0.303995]
[1727431631335,0.029241,65796.0,65787.0,0.36553863]
[1727431631336,0.0022,65796.0,65787.0,0.36553863]
[1727431631588,0.0022,65796.0,65787.0,0.06152863]
[1727431631794,0.004,65796.0,65791.0,0.151995]
[1727431632009,0.151987,65795.0,65790.0,0.151996]
[1727431632224,0.30396,65798.0,65793.0,0.15199]
[1727431632477,0.153641,65796.0,65791.0,0.303992]
[1727431632677,0.153641,65796.0,65791.0,0.151996]
[1727431632678,0.151987,65795.0,65791.0,0.151996]
[1727431632923,0.002956,65796.0,65790.0,0.303993]
[1727431633149,0.157841,65796.0,65793.0,0.151991]
[1727431633365,0.157841,65796.0,65792.0,0.00303956]
[1727431633366,0.002756,65796.0,65792.0,0.00303956]
[1727431633604,0.002456,65796.0,65795.0,0.151987]
[1727431633856,0.003,65796.0,65795.0,0.151987]
[1727431634073,0.91638277,65800.0,65788.0,0.19350398]
[1727431634311,0.0009,65795.0,65794.0,0.151989]
[1727431634520,0.0007,65795.0,65794.0,0.151989]
[1727431634725,0.91638277,65800.0,65795.0,0.151986]
[1727431634726,1.06835877,65800.0,65795.0,0.151986]
[1727431634935,1.06835877,65800.0,65791.0,0.30399]
[1727431634936,0.002,65796.0,65794.0,0.151988]
[1727431635150,0.0019,65796.0,65788.0,0.19350398]
[1727431635369,0.0049,65796.0,65790.0,0.303995]
[1727431635576,0.003,65796.0,65793.0,0.151991]
[1727431636094,0.003,65796.0,65790.0,0.303995]
[1727431636398,0.151982,65797.0,65788.0,0.19350398]
[1727431636566,0.151984,65797.0,65792.0,0.151993]
[1727431636793,0.15528794,65799.0,65791.0,0.303992]
[1727431636794,0.003,65796.0,65791.0,0.303992]
[1727431637022,0.001,65795.0,65791.0,0.303992]
[1727431637457,0.003,65796.0,65791.0,0.303992]
[1727431637715,0.003,65796.0,65792.0,0.303986]
[1727431638006,0.003,65796.0,65789.0,0.304002]
[1727431638248,0.151987,65795.0,65791.0,0.151996]
[1727431638975,0.002,65796.0,65791.0,0.151996]
[1727431639184,0.1686342,65795.0,65791.0,0.151996]
[1727431639419,0.0166462,65794.0,65788.0,0.19350398]
[1727431639660,0.0166462,65793.0,65790.0,0.303996]
[1727431639892,0.0166462,65792.0,65790.0,0.303996]
[1727431640127,0.153988,65795.0,65791.0,0.151996]
[1727431640354,0.01664633,65794.0,65790.0,0.303996]
[1727431640628,0.01664633,65793.0,65792.0,0.151993]
[1727431640828,0.01664592,65793.0,65792.0,0.151993]
[1727431641055,0.01664592,65793.0,65789.0,0.303998]
[1727431641279,0.01664592,65792.0,65791.0,0.151995]
[1727431642800,0.01664592,65792.0,65791.0,0.153995]
[1727431643020,0.01664592,65792.0,65791.0,0.153996]
[1727431643421,0.01664592,65792.0,65791.0,0.155996]
[1727431643823,0.01664592,65792.0,65791.0,0.004]
[1727431644213,0.151989,65795.0,65791.0,0.155996]
[1727431644424,0.04326592,65794.0,65791.0,0.155996]
[1727431645032,0.19525592,65794.0,65789.0,0.303998]
[1727431645248,0.04326592,65793.0,65789.0,0.303998]
[1727431645451,0.01664027,65792.0,65789.0,0.303998]
[1727431645668,0.15199,65794.0,65791.0,0.000828]
[1727431645884,0.04326843,65793.0,65791.0,0.000828]
[1727431646097,0.04326843,65792.0,65791.0,0.000828]
[1727431646313,0.0166417,65792.0,65791.0,0.000828]
[1727431646522,0.04326843,65792.0,65791.0,0.000828]
[1727431646956,0.04326843,65792.0,65791.0,0.152824]
[1727431647166,0.04326843,65792.0,65791.0,0.154824]
[1727431647592,0.001656,65796.0,65791.0,0.002828]
[1727431647832,0.15364,65796.0,65793.0,0.15199]
[1727431648053,0.001656,65796.0,65791.0,0.306816]
[1727431648242,0.04340004,65795.0,65791.0,0.004828]
[1727431648464,0.001656,65796.0,65794.0,0.151989]
[1727431648619,0.04342088,65795.0,65791.0,0.002828]
[1727431648823,0.001656,65796.0,65795.0,0.151987]
[1727431648824,0.004656,65796.0,65795.0,0.151987]
[1727431649021,0.01836847,65796.0,65795.0,0.15502633]
[1727431649276,0.04510837,65796.0,65795.0,0.15502633]
[1727431649677,0.04510837,65796.0,65795.0,0.21572633]
[1727431649888,0.04510837,65796.0,65795.0,0.2157262]
[1727431650120,0.001656,65796.0,65795.0,0.21572614]
[1727431650353,0.001656,65796.0,65795.0,0.37101408]
[1727431650581,0.001656,65796.0,65795.0,0.36797494]
[1727431650809,0.003656,65796.0,65795.0,0.36797494]
[1727431651320,0.001656,65796.0,65795.0,0.36797494]
[1727431651562,0.004656,65796.0,65795.0,0.34549098]
[1727431651820,0.01844297,65796.0,65795.0,0.34849098]
[1727431652056,0.01944297,65796.0,65795.0,0.35249098]
[1727431652538,0.01844297,65796.0,65795.0,0.34849098]
[1727431652768,0.01944297,65796.0,65795.0,0.35249098]
[1727431653252,0.01944297,65796.0,65795.0,0.34949098]
[1727431653483,0.02044297,65796.0,65795.0,0.35349098]
[1727431654160,0.02044297,65796.0,65795.0,0.50877892]
[1727431654378,0.003656,65796.0,65795.0,0.66947892]
[1727431655537,0.003656,65796.0,65795.0,0.008]
[1727431655538,0.02048009,65796.0,65795.0,0.008]
[1727431655823,0.04739465,65796.0,65795.0,0.008]
[1727431656296,0.04639465,65796.0,65795.0,0.004]
[1727431656791,0.04639465,65796.0,65795.0,0.007]
[1727431657310,0.04639465,65796.0,65795.0,0.004]
[1727431657565,0.04639465,65796.0,65795.0,0.007]
[1727431657806,0.04539465,65796.0,65795.0,0.003]
[1727431658042,0.04539465,65796.0,65795.0,0.006]
[1727431658510,0.04539465,65796.0,65795.0,0.006828]
[1727431660234,0.04511998,65796.0,65795.0,0.006828]
[1727431662999,0.04514022,65796.0,65795.0,0.006828]
[1727431663665,0.19712422,65796.0,65795.0,0.006828]
[1727431664821,0.04514022,65796.0,65795.0,0.158815]
[1727431665075,0.04514022,65796.0,65795.0,0.006828]
[1727431665280,0.19712422,65796.0,65795.0,0.006828]
[1727431667768,0.04511487,65796.0,65795.0,0.006828]
[1727431668361,0.04482987,65796.0,65795.0,0.006828]
[1727431668812,0.04482421,65796.0,65795.0,0.006828]
[1727431669849,0.04482421,65796.0,65795.0,0.158815]
[1727431670004,0.04482421,65796.0,65795.0,0.006828]
[1727431671025,0.21812421,65796.0,65795.0,0.006828]
[1727431671247,0.52539615,65796.0,65795.0,0.006828]
[1727431671467,0.64839615,65796.0,65795.0,0.006828]
[1727431671905,0.64839615,65796.0,65795.0,0.003828]
[1727431672176,0.65439615,65796.0,65795.0,0.000828]
[1727431672417,0.151994,65792.0,65791.0,0.000828]
[1727431672630,0.73613913,65792.0,65791.0,0.000828]
[1727431674173,0.75013913,65792.0,65791.0,0.001828]
[1727431675131,0.75013913,65792.0,65787.0,0.00082863]
[1727431675132,0.152003,65788.0,65787.0,0.00082863]
[1727431675361,0.73944813,65788.0,65787.0,0.00082863]
[1727431675581,0.73916754,65788.0,65787.0,0.00082863]
[1727431676483,0.75316754,65788.0,65787.0,0.00082863]
[1727431676927,0.73916754,65788.0,65787.0,0.00082863]